[Event "35th Roquetas Festival 2024"]
[Site "Roquetas de Mar"]
[Date "2024.01.05"]
[Round "6.13"]
[White "Macak, Stefan"]
[Black "Serrano Almendros, Angel"]
[Result "1-0"]
[ECO "B45"]
[WhiteElo "2354"]
[BlackElo "2250"]
[Annotator "ChessBase"]
[PlyCount "55"]
[EventDate "2024.01.02"]
[EventType "swiss"]
[EventCountry "ESP"]
[SourceTitle "playchess.com"]
[Source "ChessBase"]
[SourceQuality "1"]
[TimeControl "5400+30"]

1. e4 {[%emt 0:00:04]} c5 {[%emt 0:00:03]} 2. Nc3 {[%emt 0:00:18]} Nc6 {[%emt 0:00:06]} 3. Nf3 {[%emt 0:00:14]} e6 {[%emt 0:00:58]} 4. d4 {[%emt 0:00:11]} cxd4 {[%emt 0:00:13]} 5. Nxd4 {[%emt 0:00:02]} Nf6 {[%emt 0:00:23]} 6. a3 {[%emt 0:00:07]} Be7 {[%emt 0:03:49]} 7. Be3 {[%emt 0:01:25]} a6 {[%emt 0:04:11]} 8. Be2 {[%emt 0:01:10]} O-O {[%emt 0:02:38]} 9. Qd2 {[%emt 0:04:13]} b5 {[%emt 0:02:43]} 10. g4 {[%emt 0:06:24]} Nxd4 {[%emt 0:11:48]} 11. Qxd4 {[%emt 0:00:47]} d6 {[%emt 0:00:08]} 12. g5 {[%emt 0:07:40]} Nd7 {[%emt 0:00:50]} 13. h4 {[%emt 0:00:51]} Bb7 {[%emt 0:01:07]} 14. O-O-O {[%emt 0:01:43]} Rc8 {[%emt 0:04:05]} 15. f4 {[%emt 0:24:36]} Nc5 {[%emt 0:18:24]} 16. h5 {[%emt 0:03:15]} Bxe4 {[%emt 0:06:18]} 17. h6 {[%emt 0:11:50]} e5 {[%emt 0:05:20]} 18. fxe5 {[%emt 0:00:08]} Bxh1 {[%emt 0:00:21]} 19. hxg7 {[%emt 0:19:13]} Re8 {[%emt 0:01:03]} 20. Qh4 {[%emt 0:05:46]} Be4 {[%emt 0:13:20]} 21. Nxe4 {[%emt 0:00:44]} Nxe4 {[%emt 0:00:07]} 22. Rh1 {[%emt 0:01:53]} Nxg5 {[%emt 0:00:03]} 23. Bd3 {[%emt 0:05:51]} f5 {[%emt 0:13:09]} 24. Bxf5 {[%emt 0:00:48]} dxe5 {[%emt 0:00:02]} 25. Bxh7+ {[%emt 0:02:20]} Kf7 {[%emt 0:00:01]} 26. Qh5+ {[%emt 0:01:11]} Ke6 {[%emt 0:00:23]} 27. Qg6+ {[%emt 0:00:19]} Bf6 {[%emt 0:00:34]} 28. Bxg5 {[%emt 0:00:13]} 1-0

[Event "35th Roquetas Festival 2024"]
[Site "Roquetas de Mar"]
[Date "2024.01.05"]
[Round "6.14"]
[White "Bravo De La Vega, Alvaro"]
[Black "Raczek, Krzysztof"]
[Result "0-1"]
[ECO "B12"]
[WhiteElo "2121"]
[BlackElo "2347"]
[Annotator "RC"]
[PlyCount "130"]
[EventDate "2024.01.02"]
[EventType "swiss"]
[EventCountry "ESP"]
[SourceTitle "playchess.com"]
[Source "ChessBase"]
[SourceQuality "1"]
[TimeControl "5400+30"]

1. e4 {[%emt 0:02:54]} c6 {[%emt 0:00:16]} 2. d4 {[%emt 0:00:10]} d5 {[%emt 0:00:06]} 3. e5 {[%emt 0:00:17]} Bf5 {[%emt 0:00:06]} 4. Bd3 {[%emt 0:00:10]} Bxd3 {[%emt 0:01:14]} 5. Qxd3 {[%emt 0:00:14]} e6 {[%emt 0:00:02]} 6. Ne2 {[%emt 0:00:19]} Qa5+ {[%emt 0:04:09]} 7. Nd2 {[%emt 0:00:59]} Qa6 {[%emt 0:02:10]} 8. c4 {[%emt 0:00:28]} Nd7 {[%emt 0:11:16]} 9. O-O {[%emt 0:06:31]} Bb4 {[%emt 0:16:48]} 10. b3 {[%emt 0:05:55]} Ne7 {[%emt 0:02:38]} 11. Nc3 {[%emt 0:07:51]} Rc8 {[%emt 0:12:18]} 12. Bb2 {[%emt 0:05:37]} O-O {[%emt 0:01:24]} 13. a3 {[%emt 0:06:49]} Bxc3 {[%emt 0:01:23]} 14. Qxc3 {[%emt 0:00:08]} c5 {[%emt 0:00:21]} 15. cxd5 {[%emt 0:10:57]} Nxd5 {[%emt 0:01:07]} 16. Qf3 {[%emt 0:01:23]} cxd4 {[%emt 0:08:06]} 17. Bxd4 {[%emt 0:00:11]} Ne7 {[%emt 0:00:01]} 18. Nc4 {[%emt 0:03:12]} Rcd8 {[%emt 0:15:37]} 19. a4 {[%emt 0:04:14]} Nc6 {[%emt 0:04:27]} 20. Bb2 {[%emt 0:00:26]} Na5 {[%emt 0:01:38]} 21. Nxa5 {[%emt 0:04:31]} Qxa5 {[%emt 0:00:19]} 22. Qxb7 {[%emt 0:01:14]} Nc5 {[%emt 0:05:59]} 23. Qb5 {[%emt 0:00:30]} Qxb5 {[%emt 0:00:19]} 24. axb5 {[%emt 0:00:07]} Nxb3 {[%emt 0:00:03]} 25. Ra3 {[%emt 0:09:40]} Nd2 26. Rc1 {[%emt 0:01:09]} Nc4 {[%emt 0:01:34]} 27. Rb3 {[%emt 0:01:29]} Rd5 {[%emt 0:01:05]} 28. f4 {[%emt 0:01:48]} Na5 {[%emt 0:01:22]} 29. Rb4 {[%emt 0:00:42]} Rb8 {[%emt 0:05:50]} 30. Bd4 {[%emt 0:00:20]} h5 {[%emt 0:01:09]} 31. Bxa7 {[%emt 0:08:46]} Rdxb5 {[%emt 0:00:42]} 32. Rc8+ {[%emt 0:01:27]} Rxc8 {[%emt 0:00:06]} 33. Rxb5 {[%emt 0:00:04]} Nc6 {[%emt 0:00:33]} 34. Bc5 {[%emt 0:00:14]} Rb8 {[%emt 0:01:45]} 35. Rxb8+ {[%emt 0:00:21]} Nxb8 {[%emt 0:00:01]} 36. h3 {[%emt 0:00:18]} Nd7 37. Be3 {[%emt 0:00:06]} Kh7 {[%emt 0:01:40]} 38. Kf2 {[%emt 0:00:25]} g5 {[%emt 0:00:59]} 39. g3 {[%emt 0:00:28]} g4 {[%emt 0:00:20]} 40. hxg4 {[%emt 0:00:12]} hxg4 {[%emt 0:00:01]} 41. Bd4 {[%emt 0:01:43]} Kg6 {[%emt 0:00:39]} 42. Ke3 {[%emt 0:00:06]} Kf5 {[%emt 0:00:17]} 43. Ba7 {[%emt 0:00:17]} f6 {[%emt 0:00:35]} 44. exf6 {[%emt 0:00:22]} Nxf6 {[%emt 0:00:02]} 45. Kf2 {[%emt 0:00:32]} Ke4 {[%emt 0:00:27]} 46. Kg2 {[%emt 0:00:16]} Kd3 {[%emt 0:00:15]} 47. Bb6 {[%emt 0:00:24]} Nd5 {[%emt 0:00:17]} 48. Ba7 {[%emt 0:00:17]} Ke2 {[%emt 0:00:03]} 49. f5 {[%emt 0:08:55]} exf5 {[%emt 0:00:19]} 50. Bb8 {[%emt 0:00:05]} Ne3+ {[%emt 0:00:43]} 51. Kg1 {[%emt 0:00:17]} Kf3 {[%emt 0:00:08]} 52. Bc7 {[%emt 0:00:00]} Nd5 {[%emt 0:03:13]} 53. Bb8 {[%emt 0:00:03]} Nf6 {[%emt 0:00:30]} 54. Bc7 {[%emt 0:00:30]} Ne4 55. Kh2 Kf2 {[%emt 0:01:00]} 56. Bb6+ {[%emt 0:00:39]} Kf1 {[%emt 0:00:17]} 57. Ba7 {[%emt 0:00:38]} f4 {[%emt 0:00:11]} 58. Bb8 {[%emt 0:05:33]} f3 59. Kh1 {[%emt 0:00:45]} Ke2 {[%emt 0:00:39]} 60. Ba7 {[%emt 0:00:12]} Nxg3+ {[%emt 0:00:00]} 61. Kh2 {[%emt 0:00:04]} Ne4 62. Kh1 {[%emt 0:00:09]} g3 {[%emt 0:00:14]} 63. Kg1 {[%emt 0:00:21]} f2+ {[%emt 0:00:04]} 64. Bxf2 {[%emt 0:00:04]} gxf2+ {[%emt 0:00:04]} 65. Kh2 {[%emt 0:00:02]} Kf3 {[%emt 0:00:08]} 0-1

[Event "35th Roquetas Festival 2024"]
[Site "Roquetas de Mar"]
[Date "2024.01.05"]
[Round "6.15"]
[White "Shamatava, Nikolozi"]
[Black "Alshameary Puente, Ismael"]
[Result "1-0"]
[ECO "E06"]
[WhiteElo "2088"]
[BlackElo "2317"]
[Annotator "RC"]
[PlyCount "59"]
[EventDate "2024.01.02"]
[EventType "swiss"]
[EventCountry "ESP"]
[SourceTitle "playchess.com"]
[Source "ChessBase"]
[SourceQuality "1"]
[TimeControl "5400+30"]

1. d4 {[%emt 0:00:03]} d5 {[%emt 0:00:10]} 2. c4 {[%emt 0:00:05]} e6 {[%emt 0:00:04]} 3. Nf3 {[%emt 0:00:05]} Nf6 {[%emt 0:00:05]} 4. g3 {[%emt 0:00:06]} Be7 {[%emt 0:00:05]} 5. Bg2 {[%emt 0:00:07]} O-O {[%emt 0:00:08]} 6. O-O {[%emt 0:00:04]} dxc4 {[%emt 0:00:04]} 7. Qa4 {[%emt 0:00:08]} Qd5 {[%emt 0:00:05]} 8. Nc3 {[%emt 0:03:09]} Qc6 {[%emt 0:00:12]} 9. Qc2 {[%emt 0:01:22]} Qa6 {[%emt 0:00:05]} 10. a4 {[%emt 0:14:29]} Bd7 {[%emt 0:20:35]} 11. Bd2 {[%emt 0:07:53]} h6 {[%emt 0:30:43]} 12. Rfc1 {[%emt 0:03:58]} c5 {[%emt 0:05:51]} 13. dxc5 {[%emt 0:12:52]} Bxc5 {[%emt 0:00:51]} 14. Ne5 {[%emt 0:00:29]} Bc6 {[%emt 0:03:37]} 15. Ne4 {[%emt 0:04:08]} Bxe4 {[%emt 0:21:09]} 16. Bxe4 {[%emt 0:00:32]} Bd4 {[%emt 0:00:06]} 17. Nxc4 {[%emt 0:01:37]} Nbd7 {[%emt 0:05:09]} 18. b4 {[%emt 0:03:45]} e5 {[%emt 0:02:32]} 19. Ra2 {[%emt 0:03:17]} Rac8 {[%emt 0:00:41]} 20. Bf5 {[%emt 0:02:28]} b5 {[%emt 0:01:33]} 21. axb5 {[%emt 0:00:31]} Qxb5 {[%emt 0:00:03]} 22. Ra5 {[%emt 0:11:24]} Qb7 {[%emt 0:00:02]} 23. Qa2 {[%emt 0:01:40]} Rc7 {[%emt 0:01:29]} 24. Be1 {[%emt 0:06:17]} Nb6 {[%emt 0:06:05]} 25. Nd6 {[%emt 0:05:55]} Qb8 {[%emt 0:00:01]} 26. Rd1 {[%emt 0:00:06]} Rd8 {[%emt 0:01:32]} 27. Nb5 {[%emt 0:02:30]} Nc4 {[%emt 0:00:26]} 28. Nxc7 {[%emt 0:01:47]} Qxc7 {[%emt 0:00:34]} 29. Rc1 {[%emt 0:00:33]} Bb6 {[%emt 0:00:31]} 30. Qxc4 {[%emt 0:01:16]} 1-0

[Event "35th Roquetas Festival 2024"]
[Site "Roquetas de Mar"]
[Date "2024.01.05"]
[Round "6.16"]
[White "Rodriguez Lopez, Rafael"]
[Black "Cuenca Jimenez, Jose Fernando"]
[Result "0-1"]
[ECO "B30"]
[WhiteElo "2152"]
[BlackElo "2514"]
[Annotator "TA"]
[PlyCount "150"]
[EventDate "2024.01.02"]
[EventType "swiss"]
[EventCountry "ESP"]
[SourceTitle "playchess.com"]
[Source "ChessBase"]
[SourceQuality "1"]
[TimeControl "5400+30"]

{[%evp 9,150,49,44,-8,25,0,0,-5,14,6,12,9,0,0,8,-24,-31,-29,-37,-36,-24,-63,-44,-50,-43,-66,-52,-106,-103,-154,-152,-158,-152,-143,-142,-155,-60,-66,-55,-60,-44,-50,-33,-38,-31,-31,-24,-43,-31,-25,-28,-57,-7,-18,-9,-9,0,0,0,0,0,0,0,0,4,-16,-16,-16,-16,-15,-23,-56,-56,-66,0,0,0,0,0,0,0,0,0,0,-8,-216,-217,-400,-407,-400,-410,-902,-842,-1412,-1266,-1397,-1306,-1219,-902,-902,-902,-902,-586,-1044,-896,-803,-537,-675,0,-630,-556,-556,-546,-487,-284,-418,-359,-398,-365,-305,-270,-256,-241,-1625,-1195,-2017,-1901,-1630,-1496,-1078,-770,-649,-593,-2712,-1806,-4573,-1761,-1956,-2689,-1401,-587,-29979,-29980]} 1. e4 {[%emt 0:00:03]} c5 {[%emt 0:02:29]} 2. Nf3 {[%emt 0:00:08]} Nc6 {[%emt 0:00:03]} 3. Bb5 {[%emt 0:00:14]} e5 {[%emt 0:00:07]} 4. O-O {[%emt 0:00:11]} Bd6 {[%emt 0:00:24]} 5. c3 {[%emt 0:04:18]} a6 {[%emt 0:00:19]} 6. Bd3 {[%emt 0:00:53] B30: Sicilian: 2...Nc6 3 Bb5, lines without ...g6.} ({White should play} 6. Ba4 $14) 6... Nge7 {[%emt 0:03:21]} 7. Re1 {[%emt 0:00:16]} O-O {[%emt 0:02:03] [#]} 8. Bf1 $146 {[%emt 0:00:07] The position is equal.} ({Predecessor:} 8. Bc2 Ng6 9. d3 Bc7 10. Nbd2 d5 11. Nb3 c4 12. dxc4 dxc4 13. Qxd8 Rxd8 14. Nbd2 {0-1 Loskutova,V (2076)-Borisova,E (2234) RUS-chT Blitz (Women) 2022 (9.12)}) 8... b5 {[%emt 0:08:57]} 9. d4 {[%emt 0:01:16]} cxd4 {[%emt 0:00:55]} (9... exd4 {keeps more tension.} 10. cxd4 Nxd4 11. Nxd4 cxd4 12. Qxd4 Qc7) 10. cxd4 {[%emt 0:00:05]} Nxd4 {[%emt 0:00:16]} 11. Nxd4 {[%emt 0:00:07]} exd4 {[%emt 0:00:03]} 12. Nd2 {[%emt 0:05:30]} Nc6 {[%emt 0:01:56]} 13. Nf3 {[%emt 0:00:11]} Bc5 {[%emt 0:01:14]} 14. a3 {[%emt 0:02:22]} d6 {[%emt 0:02:22]} 15. h3 {Repels Bg4} Qf6 {[%emt 0:19:35]} 16. b4 {[%emt 0:03:49]} Bb6 {[%emt 0:00:34]} 17. Bb2 {[%emt 0:00:12]} Ne5 {[%emt 0:00:26]} 18. Rb1 {[%emt 0:13:01]} ({White should try} 18. a4 $15) 18... Be6 {[%emt 0:07:43]} 19. Nxd4 {[%emt 0:04:31] [#]} (19. Be2 $142) 19... Bxh3 $1 $17 {[%emt 0:00:23][%mdl 512]} 20. Qd2 {[%emt 0:07:25]} (20. Qb3 Bg4) 20... Qg6 {[%emt 0:05:13] White must now prevent ...Bxd4.} 21. Qe3 {[%emt 0:09:29]} Bd7 {[%emt 0:01:51] Black is much more active.} 22. Nf5 {[%emt 0:02:03]} Qg4 {[%emt 0:07:55]} (22... Bxe3 23. Ne7+ Kh8 24. Nxg6+ hxg6 25. Rxe3 $15) (22... Bxf5 $17 23. exf5 Qg4) 23. Bd4 $15 {[%emt 0:07:35]} (23. Qxb6 $2 Nf3+ 24. Kh1 Qh5+) ({Not} 23. Ne7+ $2 Kh8 24. Be2 (24. Qxb6 $2 Nf3+ 25. Kh1 Qh5#) 24... Bxe3 $19) 23... Bxd4 {[%emt 0:00:28]} 24. Nxd4 {[%emt 0:00:06]} Qh4 {[%emt 0:01:07]} 25. Nf3 {[%emt 0:01:05]} Nxf3+ {[%emt 0:06:18]} 26. Qxf3 {[%emt 0:00:09]} Rfe8 {[%emt 0:04:04]} 27. g3 {[%emt 0:02:04]} Qe7 {[%emt 0:05:46]} 28. Bg2 {[%emt 0:02:23]} Rac8 {[%emt 0:00:52]} 29. Rbd1 {[%emt 0:01:05]} Be6 {[%emt 0:02:21]} 30. Rd2 {[%emt 0:02:06]} Rc6 {[%emt 0:07:25]} ({Better is} 30... Red8 $15) 31. Red1 $11 {[%emt 0:01:26]} Bc4 {[%emt 0:04:05]} 32. Qe3 {[%emt 0:02:36]} Qc7 {[%emt 0:03:48][%cal Od6d5]} 33. e5 {[%emt 0:03:14][%cal Re5d6][%mdl 64] Discovered Attack} d5 {[%emt 0:00:03]} (33... Rxe5 $2 34. Qxe5 Kf8 35. Rxd6 Rxd6 36. Rxd6 $18) 34. Bxd5 {[%emt 0:01:52]} Bxd5 {[%emt 0:00:01]} (34... Rxe5 $2 35. Bxc6 h6 36. Rd8+ Kh7 37. Be4+ f5 38. R1d7 Rxe4 39. Rxc7 $18) 35. Rxd5 {[%emt 0:00:10]} h6 {[%emt 0:00:01]} 36. Qf4 {[%emt 0:02:49]} Rc4 {[%emt 0:00:54]} 37. Qf5 {[%emt 0:01:36] And now Rd7 would win.} Rc1 {[%emt 0:00:29]} 38. Rxc1 {[%emt 0:02:33]} Qxc1+ {[%emt 0:00:01][%mdl 4096] Endgame KQR-KQR} 39. Kh2 {[%emt 0:00:33]} Qxa3 {[%emt 0:01:13]} 40. Rd7 {[%emt 0:00:05]} Qb3 {[%emt 0:00:29]} 41. Ra7 {[%emt 0:00:22]} Qe6 {[%emt 0:01:37]} (41... Qxb4 $2 {is a self mate.} 42. Qxf7+ Kh8 43. Qxg7#) (41... Rf8 $15 42. Qg4 Qa2) 42. Qxe6 {[%emt 0:00:13]} Rxe6 {[%emt 0:00:01] KR-KR} 43. f4 {[%emt 0:00:07]} g6 {[%emt 0:02:07][%cal Bg7g6,Bg6f5][%mdl 32]} 44. Kh3 {[%emt 0:00:52]} Rc6 {[%emt 0:00:04]} 45. Kg4 {[%emt 0:00:38]} Kf8 {[%emt 0:00:11]} 46. Ra8+ {[%emt 0:00:22]} Ke7 {[%emt 0:00:07]} 47. f5 $2 {[%emt 0:01:48] Black converts the advantage convincingly.} (47. Ra7+ $11 Ke6 48. Kh4) 47... Rc4+ $19 {[%emt 0:00:19][%mdl 64] Deflection, Double Attack} 48. Kh3 $2 {[%emt 0:00:27]} (48. Kf3 gxf5 49. Rxa6) 48... gxf5 {[%emt 0:00:03]} ({And not} 48... Rxb4 49. Ra7+ Kf8 50. Ra8+ Ke7 51. Ra7+ Kf8 52. Ra8+ Ke7 $11) 49. Rxa6 {[%emt 0:00:10]} Rxb4 {[%emt 0:00:18]} 50. Rxh6 {[%emt 0:00:17]} (50. Rf6 $142 Rb1 51. Kg2) 50... Re4 {[%emt 0:00:32]} 51. Rb6 {[%emt 0:00:07]} Rxe5 {[%emt 0:00:03]} 52. Kg2 {[%emt 0:00:12]} Kd7 {[%emt 0:00:41]} 53. Rf6 {[%emt 0:00:16]} b4 {[%emt 0:02:29]} 54. Rb6 {[%emt 0:01:17] Prevents Rb5} Re4 {[%emt 0:00:01]} 55. Kf3 {[%emt 0:00:07]} Ke7 {[%emt 0:00:27] Strongly threatening ...Kd7.} 56. Rb8 {[%emt 0:01:21]} Kf6 {[%emt 0:00:12]} 57. Rb5 {[%emt 0:00:18]} Kg5 {[%emt 0:00:30]} 58. Rb7 {[%emt 0:00:13]} Kf6 {[%emt 0:00:13]} (58... Rd4 $19 {Threatens to win with ...f4.} 59. Rxf7 b3) 59. Rb6+ $2 {[%emt 0:00:28][%mdl 8192]} (59. Rb5 $11) 59... Kg7 {[%emt 0:01:52]} 60. Rb7 {[%emt 0:00:10]} Rc4 {[%emt 0:00:09]} 61. Rb6 {[%emt 0:00:13]} Rd4 {[%emt 0:00:17]} (61... Rg4 $142 62. Rb5 Kf6) 62. Ke3 {[%emt 0:00:19]} Re4+ {[%emt 0:00:35]} 63. Kf3 {[%emt 0:00:05]} Rc4 {[%emt 0:00:01]} 64. Ke3 {[%emt 0:00:22]} f6 {[%emt 0:00:21]} 65. Kf3 {[%emt 0:00:14]} Kg6 {[%emt 0:00:06]} 66. Rb7 $2 {[%emt 0:00:11]} (66. Rb8) 66... Rc3+ {[%emt 0:01:51]} 67. Kf4 {[%emt 0:00:03] [#]} Rb3 $1 {[%emt 0:00:03]} 68. Rb8 Rb1 {[%emt 0:00:01]} 69. Rg8+ {[%emt 0:01:08]} Kf7 {[%emt 0:00:07]} 70. Rb8 {[%emt 0:00:06]} Ke6 {[%emt 0:01:41] ...b3 would be deadly.} 71. Rb6+ {[%emt 0:00:08]} Kd5 {[%emt 0:00:04] aiming for ...b3.} 72. Rxf6 {[%emt 0:02:38]} Rf1+ {[%emt 0:00:05]} 73. Ke3 {[%emt 0:01:15]} b3 {[%emt 0:00:49][%cal Bb4b3,Bb3b2][%mdl 32] ( -> ...b2)} 74. Rb6 {[%emt 0:00:19]} Kc4 {[%emt 0:00:05]} (74... Rg1 $142 75. Kf2 Rb1) 75. Kd2 {[%emt 0:00:21] [#]} b2 $1 {[%emt 0:01:29][%mdl 512] Weighted Error Value: White=0.44/Black=0.21 (precise)} 0-1

[Event "35th Roquetas Festival 2024"]
[Site "Roquetas de Mar"]
[Date "2024.01.05"]
[Round "6.17"]
[White "Camacho Collados, Marcos"]
[Black "Bernado Lopez, Roger"]
[Result "1-0"]
[ECO "C65"]
[WhiteElo "2466"]
[BlackElo "2168"]
[Annotator "TA"]
[PlyCount "105"]
[EventDate "2024.01.02"]
[EventType "swiss"]
[EventCountry "ESP"]
[SourceTitle "playchess.com"]
[Source "ChessBase"]
[SourceQuality "1"]
[TimeControl "5400+30"]

{[%evp 9,105,25,23,18,29,3,9,6,8,-10,1,0,0,0,9,-14,0,-24,-41,-72,-67,-71,-61,-67,-63,-62,-30,-66,-35,-71,-68,-64,-66,-77,-70,-80,-41,-89,-92,-91,-35,-54,-37,-112,-106,-110,-99,-106,-95,-116,-105,-104,0,-125,-117,-128,-133,-139,-137,-154,-126,-248,-222,-244,-222,-253,-259,-246,-136,-185,-175,-164,-112,-109,-104,-116,0,0,0,0,0,0,0,0,0,0,0,0,0,0,0,0,512,483,12833,12834,12831,10944]} 1. e4 {[%emt 0:00:57]} e5 {[%emt 0:05:54]} 2. Nf3 {[%emt 0:00:18]} Nc6 {[%emt 0:00:26]} 3. Bb5 {[%emt 0:00:16]} Nf6 {[%emt 0:00:04]} 4. d3 {[%emt 0:00:07]} Bc5 {[%emt 0:00:11]} 5. Bxc6 {[%emt 0:00:26]} dxc6 {[%emt 0:00:05]} 6. Nbd2 {[%emt 0:00:20] C65: Ruy Lopez: Berlin Defence (3...Nf6), unusual lines and 4 0-0 Bc5.} Qe7 {[%emt 0:04:57]} 7. Qe2 {[%emt 0:00:32]} Nd7 {[%emt 0:02:04]} 8. Nc4 {[%emt 0:01:07] The position is equal.} f6 {[%emt 0:00:33]} 9. Nh4 {[%emt 0:01:32] [#]} Nf8 $146 {[%emt 0:00:39]} ({Predecessor:} 9... Nb6 10. Na5 Bb4+ 11. Bd2 Bxa5 12. Bxa5 Be6 13. a4 O-O 14. O-O c5 15. b3 Nc8 {1-0 Aroshidze,L (2503)-Rizouk,A (2436) Catalunya-chT GpA final 2018 (3.3)}) 10. O-O {[%emt 0:02:37]} Be6 {[%emt 0:01:43]} 11. Be3 {[%emt 0:03:41]} O-O-O {[%emt 0:09:46]} 12. a4 {[%emt 0:12:39]} Kb8 {[%emt 0:11:33]} 13. Rab1 {[%emt 0:15:24]} Bxe3 {[%emt 0:01:49]} 14. Qxe3 {[%emt 0:00:52]} Bxc4 {[%emt 0:09:43]} 15. dxc4 {[%emt 0:00:09]} Qb4 {[%emt 0:01:07]} 16. b3 {[%emt 0:08:42]} Ne6 {[%emt 0:02:28]} 17. Rfd1 {[%emt 0:03:37] Inhibits Qd2.} Qc5 {[%emt 0:05:28]} 18. Qc3 {[%emt 0:02:02]} Rd4 {[%emt 0:05:06]} 19. Re1 {[%emt 0:09:45]} Rhd8 {[%emt 0:02:54]} 20. Nf3 {[%emt 0:04:15] Against Rd2} R4d7 {[%emt 0:00:41]} 21. b4 {[%emt 0:00:28]} Qe7 {[%emt 0:01:05]} 22. c5 {[%emt 0:00:37]} Nd4 {[%emt 0:10:48]} 23. b5 {[%emt 0:05:09]} (23. Nxd4 $15 Rxd4 24. Qh3) 23... Nxf3+ $17 {[%emt 0:00:57]} 24. gxf3 {[%emt 0:00:13]} Qe6 {[%emt 0:01:23]} ({Black should play} 24... cxb5 $17 25. axb5 b6) 25. Kg2 $15 {[%emt 0:03:02]} Rd2 {[%emt 0:03:03]} 26. a5 {[%emt 0:04:13]} (26. bxc6 $1 $15 Qxc6 27. a5) 26... cxb5 $17 {[%emt 0:01:39]} 27. Rxb5 {[%emt 0:00:16]} a6 {[%emt 0:00:48]} 28. Rb3 {[%emt 0:00:56] Threatens to win with c6.} c6 $1 {[%emt 0:06:02]} 29. Reb1 {[%emt 0:02:14]} R2d7 {[%emt 0:00:06]} 30. Rb6 {[%emt 0:00:32][%cal Oc3b4]} Qf7 {[%emt 0:04:07]} (30... Ka8 $1 $17) 31. Qb4 {[%emt 0:04:26]} (31. Rxc6 $11 {keeps the balance.} Qg6+ 32. Kh3) 31... Ka8 $1 {[%emt 0:05:35]} 32. h3 {[%emt 0:01:43][%cal Bh2h3,Bh3h4][%mdl 32]} Rd1 {[%emt 0:03:09] ( -> ...Qg6+)} 33. h4 {[%emt 0:07:15]} Rxb1 {[%emt 0:00:32]} 34. Qxb1 {[%emt 0:00:06][%mdl 4096] Endgame KQR-KQR} Qg6+ {[%emt 0:00:26]} 35. Kf1 {[%emt 0:00:45]} (35. Kh3 $17 {was forced.} Rd7 36. Rb3) 35... Rd7 $1 $19 {[%emt 0:00:34]} 36. Rb3 {[%emt 0:03:24]} Qh5 {[%emt 0:00:33]} 37. Rd3 {[%emt 0:01:35] [#]} Qxh4 $1 {[%emt 0:00:12]} 38. Qb3 {[%emt 0:00:44]} Qh3+ {[%emt 0:00:32]} (38... Rxd3 $1 $19 39. cxd3 Qh1+ 40. Ke2 Qa1) 39. Ke2 {[%emt 0:00:02]} (39. Kg1 $17 {keeps fighting.} Rxd3 40. Qxd3) 39... Rxd3 $1 {[%emt 0:00:15]} 40. cxd3 {[%emt 0:00:26] [#] KQ-KQ} Qc8 {[%emt 0:00:15] Prevents Qg8} (40... Qd7 $1 $19 {aiming for ...h5.} 41. Ke1 Kb8) 41. Qf7 $17 {[%emt 0:00:23]} Qd8 {[%emt 0:00:38]} 42. Qxg7 {[%emt 0:01:05]} Qxa5 {[%emt 0:00:03]} (42... Ka7 $17 {And now ...h5 would win.} 43. Qxh7 Qxa5) 43. Qxf6 $11 {[%emt 0:00:44]} Qxc5 {[%emt 0:00:03]} 44. f4 $1 {[%emt 0:01:31]} Qc2+ {[%emt 0:00:17][%mdl 64] Deflection} 45. Kf3 $1 {[%emt 0:01:20]} Qxd3+ {[%emt 0:01:11]} 46. Kg4 {[%emt 0:00:00]} Qxe4 {[%emt 0:01:03]} 47. Qxe5 {[%emt 0:00:35]} Qg2+ {[%emt 0:00:45]} 48. Kh5 {[%emt 0:00:09]} Qh3+ {[%emt 0:00:20]} (48... Qxf2 $5 49. f5 $8 Qg1 $11) 49. Kg5 {[%emt 0:00:04] Hoping for f5.} Qg2+ {[%emt 0:00:13]} 50. Kf6 {[%emt 0:00:44] f5 is the strong threat.} Qxf2 $2 {[%emt 0:00:27][%mdl 8192]} (50... b5 $11 {and Black is okay.}) 51. f5 $18 {[%emt 0:00:11][%cal Bf4f5,Bf5f6][%mdl 32] White is clearly winning.} c5 {[%emt 0:00:47] [#]} (51... Qh4+ $142 52. Ke6 Qh5) 52. Ke7 $1 {[%emt 0:00:47]} c4 {[%emt 0:00:45]} 53. f6 {[%emt 0:00:06] What a bad dream for Black.   Weighted Error Value: White=0.18 (very precise) /Black=0.27 (precise)} 1-0